fUST/lending_fUST_20250918
["ID","MTS","AMOUNT","RATE_DAILY","PERIOD"]
[385937852,1758138639960,-480.0,0.00023269,3]
[385937854,1758138639970,-480.0,0.0002327,3]
[385937856,1758138639979,-493.1,0.0002327,3]
[385937858,1758138639989,-1786.95,0.0002327,3]
[385937860,1758138639999,-480.0,0.0002327,3]
[385937862,1758138640008,-953.94,0.0002327,3]
[385937864,1758138640018,-480.0,0.0002327,3]
[385937867,1758138640028,-3938.95,0.0002327,3]
[385937868,1758138640038,-480.0,0.00023271,3]
[385937870,1758138640047,-480.0,0.00023271,3]
[385937872,1758138640057,-480.0,0.00023272,3]
[385937874,1758138640066,-480.0,0.0002328,3]
[385937876,1758138640075,-558.47,0.0002328,3]
[385937878,1758138640085,-551.57,0.0002328,3]
[385937881,1758138640094,-500.0,0.00023286,2]
[385937883,1758138640103,-368.15195787,0.00023286,2]
[385937885,1758138640112,-573.43006598,0.00023286,2]
[385937887,1758138640121,-224.21497132,0.00023286,2]
[385937889,1758138640131,-3184.58,0.00023287,2]
[385937891,1758138640140,-160.0,0.00023452,2]
[385937893,1758138640149,-160.0,0.00023452,2]
[385937895,1758138640159,-176.33,0.00023532,3]
[385937898,1758138640167,-528.99,0.00023532,3]
[385937901,1758138640177,-841.86,0.00023533,3]
[385937904,1758138640186,-274.6,0.0002354,3]
[385937907,1758138640196,-480.0,0.0002354,3]
[385937909,1758138640205,-480.0,0.0002354,3]
[385937924,1758138640309,-725.14,0.0002354,3]
[385937927,1758138640319,-480.0,0.00023541,3]
[385937929,1758138640329,-480.0,0.00023541,3]
[385937931,1758138640341,-883.01,0.00023541,3]
[385937933,1758138640350,-480.0,0.00023541,3]
[385937935,1758138640359,-480.0,0.00023542,3]
[385937937,1758138640369,-480.0,0.00023542,3]
[385937939,1758138640379,-480.0,0.00023542,3]
[385937940,1758138640388,-480.0,0.00023542,3]
[385937942,1758138640399,-480.0,0.00023542,3]
[385937944,1758138640410,-480.0,0.00023542,3]
[385937946,1758138640420,-480.0,0.00023542,3]
[385937948,1758138640429,-480.0,0.00023542,3]
[385937950,1758138640438,-480.0,0.00023542,3]
[385937952,1758138640447,-500.99,0.00023542,3]
[385937954,1758138640456,-480.0,0.00023542,3]
[385937956,1758138640466,-616.5,0.00023542,3]
[385937958,1758138640476,-480.0,0.00023542,3]
[385937960,1758138640487,-480.0,0.00023542,3]
[385937962,1758138640497,-490.23,0.00023542,3]
[385937964,1758138640506,-480.0,0.00023542,3]
[385937966,1758138640515,-480.0,0.00023542,3]
[385937968,1758138640524,-595.81,0.00023542,3]
[385937970,1758138640533,-480.0,0.00023542,3]
[385937972,1758138640543,-480.0,0.00023542,3]
[385937974,1758138640552,-480.0,0.00023542,3]
[385937976,1758138640562,-480.0,0.00023542,3]
[385937978,1758138640571,-480.0,0.00023542,3]
[385937980,1758138640580,-480.0,0.00023542,3]
[385937982,1758138640590,-654.02,0.00023542,3]
[385937984,1758138640599,-480.0,0.00023542,3]
[385937986,1758138640608,-480.0,0.00023542,3]
[385937988,1758138640618,-480.0,0.00023542,3]
[385937990,1758138640628,-581.25,0.00023542,3]
[385937992,1758138640637,-480.0,0.00023542,3]
[385937994,1758138640647,-480.0,0.00023542,3]
[385937996,1758138640656,-480.0,0.00023542,3]
[385937998,1758138640666,-512.89,0.00023542,3]
[385938000,1758138640675,-1372.71,0.00023542,3]
[385938002,1758138640684,-480.0,0.00023542,3]
[385938004,1758138640694,-480.0,0.00023542,3]
[385938006,1758138640704,-539.49,0.00023542,3]
[385938008,1758138640713,-480.0,0.00023542,3]
[385938010,1758138640722,-480.0,0.00023542,3]
[385938012,1758138640732,-480.0,0.00023542,3]
[385938014,1758138640743,-480.0,0.00023542,3]
[385938016,1758138640753,-480.0,0.00023542,3]
[385938017,1758138640761,-482.38,0.00023542,3]
[385938019,1758138640771,-480.0,0.00023542,3]
[385938021,1758138640780,-480.0,0.00023543,3]
[385938023,1758138640790,-480.0,0.00023543,3]
[385938025,1758138640799,-253.66,0.00023543,3]
[385938027,1758138640808,-480.0,0.00023543,3]
[385938029,1758138640817,-480.0,0.00023543,3]
[385938031,1758138640826,-480.0,0.00023543,3]
[385938033,1758138640836,-480.0,0.00023543,3]
[385938036,1758138640845,-480.0,0.00023543,3]
[385938038,1758138640855,-480.0,0.00023543,3]
[385938040,1758138640865,-480.0,0.00023543,3]
[385938042,1758138640874,-517.12,0.00023543,3]
[385938044,1758138640884,-480.0,0.00023543,3]
[385938046,1758138640893,-480.0,0.00023543,3]
[385938048,1758138640902,-1060.69,0.00023543,3]
[385938051,1758138640912,-480.0,0.00023543,3]
[385938054,1758138640922,-514.25,0.00023543,3]
[385938056,1758138640932,-497.09,0.00023543,3]
[385938058,1758138640941,-487.73,0.00023543,3]
[385938060,1758138640950,-480.0,0.00023543,3]
[385938062,1758138640959,-261.82586046,0.00023543,3]
[385938064,1758138640968,-480.0,0.00023543,3]
[385938066,1758138640977,-480.0,0.00023543,3]
[385938068,1758138640987,-480.0,0.00023543,3]
[385938070,1758138640997,-480.0,0.00023543,3]
[385938072,1758138641007,-480.0,0.00023543,3]
[385938074,1758138641016,-827.34,0.00023543,3]
[385938076,1758138641026,-480.0,0.00023543,3]
[385938078,1758138641035,-480.0,0.00023543,3]
[385938080,1758138641045,-480.0,0.00023543,3]
[385938082,1758138641054,-429.527272,0.00023543,3]
[385938084,1758138641063,-480.0,0.00023543,3]
[385938086,1758138641073,-495.35,0.00023543,3]
[385938088,1758138641083,-1786.95,0.00023544,3]
[385938090,1758138641093,-480.0,0.00023544,3]
[385938092,1758138641108,-953.94,0.00023544,3]
[385938094,1758138641123,-480.0,0.00023544,3]
[385938096,1758138641132,-3938.95,0.00023544,3]
[385938098,1758138641141,-480.0,0.00023545,3]
[385938100,1758138641150,-259.80030642,0.00023545,3]
[385938102,1758138641159,-480.0,0.00023546,3]
[385938104,1758138641168,-480.0,0.00023554,3]
[385938106,1758138641178,-558.47,0.00023554,3]
[385938108,1758138641187,-551.57,0.00023554,3]
[385938110,1758138641197,-500.0,0.00023573,2]
[385938112,1758138641206,-500.0,0.00023573,2]
[385938114,1758138641215,-500.0,0.00023573,2]
[385938116,1758138641223,-2309.57978957,0.00023579,2]
[385938118,1758138641233,-847.79063332,0.00023605,2]
[385938120,1758138641243,-160.0,0.00023605,2]
[385938122,1758138641253,-160.0,0.00023605,2]
[385938124,1758138641262,-250.14123732,0.00023628,2]
[385938125,1758138641271,-346.16,0.0002372,3]
[385938128,1758138641280,-300.0,0.0002373,20]
[385938129,1758138641289,-300.0,0.0002373,20]
[385938131,1758138641299,-300.0,0.0002373,20]
[385938133,1758138641308,-300.0,0.0002373,20]
[385938135,1758138641317,-300.0,0.0002373,20]
[385938137,1758138641326,-300.0,0.0002373,20]
[385938139,1758138641340,-300.0,0.0002373,20]
[385938141,1758138641349,-300.0,0.0002373,20]
[385938143,1758138641358,-300.0,0.0002373,20]
[385938145,1758138641367,-300.0,0.0002373,20]
[385938147,1758138641377,-300.0,0.0002373,20]
[385938150,1758138641387,-300.0,0.0002373,20]
[385938152,1758138641396,-300.0,0.0002373,20]
[385938154,1758138641406,-300.0,0.0002373,20]
[385938155,1758138641415,-300.0,0.0002373,20]
[385938157,1758138641425,-600.0,0.0002373,20]
[385938159,1758138641434,-480.0,0.00023814,3]
[385938161,1758138641443,-480.0,0.00023814,3]
[385938163,1758138641452,-725.14,0.00023814,3]
[385938165,1758138641461,-480.0,0.00023815,3]
[385938167,1758138641470,-883.01,0.00023815,3]
[385938169,1758138641479,-480.0,0.00023815,3]
[385938171,1758138641489,-480.0,0.00023816,3]
[385938173,1758138641498,-480.0,0.00023816,3]
[385938175,1758138641507,-480.0,0.00023816,3]
[385938177,1758138641516,-480.0,0.00023816,3]
[385938179,1758138641525,-480.0,0.00023816,3]
[385938181,1758138641533,-480.0,0.00023816,3]
[385938183,1758138641544,-480.0,0.00023816,3]
[385938185,1758138641552,-480.0,0.00023816,3]
[385938186,1758138641561,-480.0,0.00023816,3]
[385938187,1758138641570,-169.48,0.00023816,3]
[385938188,1758138641579,-480.0,0.00023816,3]
[385938189,1758138641588,-480.0,0.00023816,3]
[385938190,1758138641597,-480.0,0.00023816,3]
[385938191,1758138641605,-595.81,0.00023816,3]
[385938192,1758138641614,-480.0,0.00023816,3]
[385938193,1758138641623,-480.0,0.00023816,3]
[385938194,1758138641632,-480.0,0.00023816,3]
[385938195,1758138641641,-480.0,0.00023816,3]
[385938196,1758138641650,-480.0,0.00023816,3]
[385938197,1758138641658,-480.0,0.00023816,3]
[385938198,1758138641667,-654.02,0.00023816,3]
[385938200,1758138641676,-480.0,0.00023816,3]
[385938202,1758138641685,-480.0,0.00023816,3]
[385938204,1758138641694,-480.0,0.00023816,3]
[385938206,1758138641703,-581.25,0.00023816,3]
[385938208,1758138641712,-480.0,0.00023816,3]
[385938210,1758138641721,-480.0,0.00023816,3]
[385938212,1758138641730,-480.0,0.00023816,3]
[385938214,1758138641740,-512.89,0.00023816,3]
[385938216,1758138641750,-1372.71,0.00023816,3]
[385938218,1758138641758,-480.0,0.00023816,3]
[385938220,1758138641767,-480.0,0.00023816,3]
[385938222,1758138641776,-480.0,0.00023816,3]
[385938224,1758138641785,-480.0,0.00023816,3]
[385938226,1758138641794,-480.0,0.00023816,3]
[385938228,1758138641803,-482.38,0.00023816,3]
[385938230,1758138641812,-480.0,0.00023816,3]
[385938231,1758138641821,-486.08276517,0.00023817,3]
[385938233,1758138641830,-617.83,0.00023817,3]
[385938235,1758138641839,-480.0,0.00023817,3]
[385938237,1758138641848,-480.0,0.00023817,3]
[385938239,1758138641857,-480.0,0.00023817,3]
[385938241,1758138641866,-480.0,0.00023817,3]
[385938243,1758138641876,-480.0,0.00023817,3]
[385938245,1758138641885,-480.0,0.00023817,3]
[385938247,1758138641894,-480.0,0.00023817,3]
[385938249,1758138641907,-480.0,0.00023817,3]
[385938252,1758138641919,-1060.69,0.00023817,3]
[385938254,1758138641928,-480.0,0.00023817,3]
[385938255,1758138641937,-357.82528036,0.00023817,3]
[385938257,1758138641946,-480.0,0.00023817,3]
[385938259,1758138641955,-154.78,0.00023817,3]
[385938261,1758138641965,-372.71,0.00023817,3]
[385938263,1758138641974,-827.34,0.00023817,3]
[385938265,1758138641983,-615.01239671,0.00023817,3]
[385938267,1758138641994,-388.93206816,0.00023817,3]
[385938269,1758138642004,-1786.95,0.00023818,3]
[385938271,1758138642013,-480.0,0.00023818,3]
[385938273,1758138642022,-953.94,0.00023818,3]
[385938275,1758138642031,-480.0,0.00023818,3]
[385938277,1758138642040,-3938.95,0.00023818,3]
[385938279,1758138642050,-480.0,0.00023819,3]
[385938281,1758138642059,-480.0,0.00023828,3]
[385938283,1758138642068,-558.47,0.00023828,3]
[385938285,1758138642077,-551.57,0.00023828,3]
[385938287,1758138642086,-500.0,0.00023873,2]
[385938289,1758138642095,-500.0,0.00023873,2]
[385938291,1758138642104,-500.0,0.00023873,2]
[385938293,1758138642113,-500.0,0.00023873,2]
[385938295,1758138642122,-500.0,0.00023873,2]
[385938297,1758138642131,-500.0,0.00023873,2]
[385938299,1758138642141,-2309.57978957,0.0002399,2]
[385938300,1758138642150,-176.33,0.0002408,3]
[385938302,1758138642161,-352.66,0.00024081,3]
[385938304,1758138642170,-528.99,0.00024081,3]
[385938306,1758138642179,-480.0,0.00024088,3]
[385938308,1758138642188,-480.0,0.00024088,3]
[385938310,1758138642198,-725.14,0.00024088,3]
[385938312,1758138642207,-480.0,0.00024089,3]
[385938313,1758138642216,-883.01,0.00024089,3]
[385938315,1758138642225,-480.0,0.00024089,3]
[385938317,1758138642234,-480.0,0.0002409,3]
[385938319,1758138642244,-480.0,0.0002409,3]
[385938321,1758138642253,-480.0,0.0002409,3]
[385938322,1758138642262,-480.0,0.0002409,3]
[385938323,1758138642271,-480.0,0.0002409,3]
[385938324,1758138642281,-480.0,0.0002409,3]
[385938325,1758138642290,-165.07,0.0002409,3]
[385938326,1758138642300,-595.81,0.0002409,3]
[385938327,1758138642309,-480.0,0.0002409,3]
[385938328,1758138642319,-480.0,0.0002409,3]
[385938329,1758138642328,-480.0,0.0002409,3]
[385938330,1758138642341,-480.0,0.0002409,3]
[385938331,1758138642350,-190.74,0.0002409,3]
[385938332,1758138642360,-480.0,0.0002409,3]
[385938333,1758138642369,-654.02,0.0002409,3]
[385938334,1758138642378,-480.0,0.0002409,3]
[385938335,1758138642388,-480.0,0.0002409,3]
[385938336,1758138642397,-480.0,0.0002409,3]
[385938337,1758138642407,-581.25,0.0002409,3]
[385938338,1758138642417,-480.0,0.0002409,3]
[385938339,1758138642427,-480.0,0.0002409,3]
[385938340,1758138642436,-480.0,0.0002409,3]
[385938341,1758138642445,-512.89,0.0002409,3]
[385938342,1758138642455,-1372.71,0.0002409,3]
[385938343,1758138642464,-480.0,0.0002409,3]
[385938344,1758138642473,-480.0,0.0002409,3]
[385938345,1758138642482,-480.0,0.0002409,3]
[385938346,1758138642493,-480.0,0.0002409,3]
[385938347,1758138642503,-480.0,0.0002409,3]
[385938348,1758138642512,-482.38,0.0002409,3]
[385938349,1758138642521,-183.39,0.0002409,3]
[385938350,1758138642531,-480.0,0.00024091,3]
[385938351,1758138642541,-480.0,0.00024091,3]
[385938352,1758138642550,-254.73,0.00024091,3]
[385938353,1758138642559,-1060.69,0.00024091,3]
[385938354,1758138642569,-480.0,0.00024091,3]
[385938355,1758138642578,-480.0,0.00024091,3]
[385938356,1758138642587,-827.34,0.00024091,3]
[385938357,1758138642597,-1786.95,0.00024092,3]
[385938358,1758138642606,-480.0,0.00024092,3]
[385938359,1758138642615,-953.94,0.00024092,3]
[385938360,1758138642624,-3938.95,0.00024092,3]
[385938361,1758138642634,-480.0,0.00024093,3]
[385938362,1758138642644,-480.0,0.00024102,3]
[385938363,1758138642653,-558.47,0.00024102,3]
[385938364,1758138642747,-551.57,0.00024102,3]
[385938365,1758138642757,-150.0,0.00024109,2]
[385938366,1758138642767,-1000.0,0.00024121,2]
[385938367,1758138642776,-160.0,0.0002425,2]
[385938368,1758138642786,-500.0,0.00024312,2]
[385938369,1758138642795,-500.0,0.00024312,2]
[385938370,1758138642806,-596.97055021,0.00024312,2]
[385938371,1758138642815,-181.08010149,0.00024312,2]
[385938372,1758138642824,-480.0,0.00024362,3]
[385938373,1758138642833,-480.0,0.00024362,3]
[385938374,1758138642844,-725.14,0.00024362,3]
[385938375,1758138642854,-480.0,0.00024363,3]
[385938376,1758138642863,-883.01,0.00024363,3]
[385938377,1758138642874,-157.01,0.00024363,3]
[385938378,1758138642883,-480.0,0.00024364,3]
[385938379,1758138642892,-480.0,0.00024364,3]
[385938380,1758138642903,-480.0,0.00024364,3]
[385938381,1758138642912,-377.67,0.00024364,3]
[385938382,1758138642921,-480.0,0.00024364,3]
[385938383,1758138642931,-480.0,0.00024364,3]
[385938384,1758138642940,-595.81,0.00024364,3]
[385938385,1758138642949,-402.89,0.00024364,3]
[385938386,1758138642959,-480.0,0.00024364,3]
[385938387,1758138642968,-480.0,0.00024364,3]
[385938388,1758138642977,-480.0,0.00024364,3]
[385938389,1758138642989,-480.0,0.00024364,3]
[385938390,1758138642998,-654.02,0.00024364,3]
[385938391,1758138643008,-480.0,0.00024364,3]
[385938392,1758138643018,-480.0,0.00024364,3]
[385938393,1758138643028,-480.0,0.00024364,3]
[385938394,1758138643038,-581.25,0.00024364,3]
[385938395,1758138643048,-480.0,0.00024364,3]
[385938396,1758138643058,-480.0,0.00024364,3]
[385938397,1758138643067,-480.0,0.00024364,3]
[385938398,1758138643077,-512.89,0.00024364,3]
[385938399,1758138643087,-1372.71,0.00024364,3]
[385938400,1758138643096,-480.0,0.00024364,3]
[385938401,1758138643105,-480.0,0.00024364,3]
[385938402,1758138643115,-480.0,0.00024364,3]
[385938403,1758138643124,-194.36271838,0.00024364,3]
[385938405,1758138643133,-480.0,0.00024364,3]
[385938406,1758138643142,-482.38,0.00024364,3]
[385938407,1758138643151,-480.0,0.00024365,3]
[385938408,1758138643161,-480.0,0.00024365,3]
[385938409,1758138643170,-1060.69,0.00024365,3]
[385938410,1758138643179,-480.0,0.00024365,3]
[385938411,1758138643188,-480.0,0.00024365,3]
[385938412,1758138643198,-827.34,0.00024365,3]
[385938413,1758138643207,-1786.95,0.00024366,3]
[385938414,1758138643217,-480.0,0.00024366,3]
[385938415,1758138643226,-953.94,0.00024366,3]
[385938417,1758138643236,-3938.95,0.00024366,3]
[385938421,1758138643248,-480.0,0.00024367,3]
[385938425,1758138643258,-480.0,0.00024376,3]
[385938429,1758138643268,-558.47,0.00024376,3]
[385938433,1758138643278,-551.57,0.00024376,3]
[385938437,1758138643288,-2309.57978957,0.00024401,2]
[385938441,1758138643297,-1000.0,0.00024421,2]
[385938444,1758138643306,-1000.0,0.00024421,2]
[385938447,1758138643316,-10546.64649261,0.00024462,3]
[385938450,1758138643325,-168.0,0.00024513,2]
[385938453,1758138643339,-4945.94268626,0.00024539,2]
[385938456,1758138643348,-168.0,0.00024602,2]
[385938459,1758138643357,-168.0,0.00024618,2]
[385938462,1758138643366,-480.0,0.00024636,3]
[385938465,1758138643376,-480.0,0.00024636,3]
[385938468,1758138643385,-725.14,0.00024636,3]
[385938471,1758138643395,-480.0,0.00024637,3]
[385938475,1758138643405,-883.01,0.00024637,3]
[385938477,1758138643416,-480.0,0.00024638,3]
[385938479,1758138643427,-480.0,0.00024638,3]
[385938481,1758138643437,-480.0,0.00024638,3]
[385938483,1758138643446,-480.0,0.00024638,3]
[385938485,1758138643455,-480.0,0.00024638,3]
[385938487,1758138643464,-595.81,0.00024638,3]
[385938489,1758138643474,-480.0,0.00024638,3]
[385938491,1758138643483,-480.0,0.00024638,3]
[385938493,1758138643498,-480.0,0.00024638,3]
[385938495,1758138643507,-191.48,0.00024638,3]
[385938497,1758138643516,-654.02,0.00024638,3]
[385938499,1758138643525,-480.0,0.00024638,3]
[385938501,1758138643535,-480.0,0.00024638,3]
[385938503,1758138643544,-480.0,0.00024638,3]
[385938505,1758138643554,-581.25,0.00024638,3]
[385938507,1758138643563,-480.0,0.00024638,3]
[385938509,1758138643572,-480.0,0.00024638,3]
[385938511,1758138643582,-512.89,0.00024638,3]
[385938513,1758138643590,-480.0,0.00024638,3]
[385938515,1758138643600,-1372.71,0.00024638,3]
[385938517,1758138643609,-365.53752691,0.00024638,3]
[385938519,1758138643618,-480.0,0.00024638,3]
[385938521,1758138643627,-518.62,0.00024638,3]
[385938523,1758138643637,-283.54,0.00024638,3]
[385938524,1758138643647,-482.38,0.00024638,3]
[385938526,1758138643656,-480.0,0.00024639,3]
[385938528,1758138643665,-480.0,0.00024639,3]
[385938530,1758138643675,-1060.69,0.00024639,3]
[385938532,1758138643684,-480.0,0.00024639,3]
[385938534,1758138643693,-480.0,0.00024639,3]
[385938536,1758138643704,-827.34,0.00024639,3]
[385938538,1758138643713,-1786.95,0.0002464,3]
[385938540,1758138643722,-480.0,0.0002464,3]
[385938542,1758138643732,-953.94,0.0002464,3]
[385938544,1758138643746,-3938.95,0.0002464,3]
[385938546,1758138643755,-480.0,0.00024641,3]
[385938548,1758138643763,-480.0,0.0002465,3]
[385938550,1758138643773,-558.47,0.0002465,3]
[385938552,1758138643782,-551.57,0.0002465,3]
[385938554,1758138643792,-204.22567322,0.00024657,2]
[385938556,1758138643801,-168.0,0.00024666,2]
[385938557,1758138643810,-1500.0,0.00024668,2]
[385938558,1758138643820,-332.0,0.00024743,2]
[385938559,1758138643830,-168.0,0.00024772,2]
[385938560,1758138643839,-260.0,0.00024798,2]
[385938561,1758138643848,-2000.0,0.000248,2]
[385938562,1758138643857,-2000.0,0.000248,2]
[385938563,1758138643867,-2309.57978957,0.00024812,2]
[385938564,1758138643876,-500.0,0.00024873,2]
[385938565,1758138643886,-502.83841149,0.00024873,2]
[385938566,1758138643895,-500.0,0.00024873,2]
[385938567,1758138643905,-500.0,0.00024873,2]
[385938568,1758138643914,-157.07382482,0.00024873,2]
[385938570,1758138643923,-500.0,0.00024873,2]
[385938572,1758138643933,-500.0,0.00024873,2]
[385938574,1758138643942,-209.05238701,0.00024873,2]
[385938576,1758138643950,-500.0,0.00024873,2]
[385938577,1758138643959,-500.0,0.00024873,2]
[385938578,1758138643969,-500.0,0.00024873,2]
[385938579,1758138643978,-168.0,0.00024877,2]
[385938580,1758138643989,-769978.709914,0.000249,2]
[385938581,1758138643998,-352.66,0.00024902,3]
[385938582,1758138644008,-480.0,0.0002491,3]
[385938583,1758138644017,-480.0,0.0002491,3]
[385938584,1758138644026,-725.14,0.0002491,3]
[385938585,1758138644035,-480.0,0.00024911,3]
[385938586,1758138644045,-883.01,0.00024911,3]
[385938587,1758138644054,-406.29,0.00024912,3]
[385938588,1758138644064,-462.28,0.00024912,3]
[385938589,1758138644073,-480.0,0.00024912,3]
[385938590,1758138644082,-480.0,0.00024912,3]
[385938592,1758138644092,-595.81,0.00024912,3]
[385938594,1758138644101,-480.0,0.00024912,3]
[385938596,1758138644110,-480.0,0.00024912,3]
[385938598,1758138644119,-480.0,0.00024912,3]
[385938600,1758138644128,-654.02,0.00024912,3]
[385938602,1758138644138,-569.21,0.00024912,3]
[385938604,1758138644147,-480.0,0.00024912,3]
[385938606,1758138644156,-480.0,0.00024912,3]
[385938608,1758138644166,-581.25,0.00024912,3]
[385938610,1758138644175,-480.0,0.00024912,3]
[385938612,1758138644184,-480.0,0.00024912,3]
[385938614,1758138644193,-512.89,0.00024912,3]
[385938616,1758138644203,-480.0,0.00024912,3]
[385938618,1758138644213,-1372.71,0.00024912,3]
[385938619,1758138644222,-480.0,0.00024912,3]
[385938622,1758138644232,-482.38,0.00024912,3]
[385938624,1758138644244,-193.33,0.00024913,3]
[385938626,1758138644255,-480.0,0.00024913,3]
[385938628,1758138644265,-1060.69,0.00024913,3]
[385938630,1758138644274,-480.0,0.00024913,3]
[385938632,1758138644284,-288.74,0.00024913,3]
[385938633,1758138644293,-827.34,0.00024913,3]
[385938634,1758138644304,-1786.95,0.00024914,3]
[385938635,1758138644314,-480.0,0.00024914,3]
[385938636,1758138644323,-953.94,0.00024914,3]
[385938637,1758138644333,-3938.95,0.00024914,3]
[385938638,1758138644346,-480.0,0.00024915,3]
[385938639,1758138644355,-480.0,0.00024924,3]
[385938640,1758138644365,-558.47,0.00024924,3]
[385938641,1758138644374,-551.57,0.00024924,3]
[385938642,1758138644385,-1500.0,0.00024968,2]
[385938643,1758138644394,-600.0,0.00024986,2]
[385938644,1758138644403,-865.50712061,0.0002499,2]
[385938645,1758138644413,-617.38,0.00025,7]
[385938646,1758138644423,-417.15472785,0.00025,10]
[385938647,1758138644433,-204.73973,0.00025,2]
[385938648,1758138644442,-332.0,0.00025015,7]
[385938649,1758138644451,-1837.0,0.00025041,2]
[385938650,1758138644461,-977.0,0.00025041,2]
[385938651,1758138644470,-634.0,0.00025041,2]
[385938652,1758138644479,-2156.0,0.00025041,2]
[385938653,1758138644489,-150.0,0.00025041,2]
[385938654,1758138644499,-151.0,0.000251,20]
[385938655,1758138644508,-480.0,0.00025184,3]
[385938656,1758138644517,-480.0,0.00025184,3]
[385938657,1758138644526,-725.14,0.00025184,3]
[385938658,1758138644536,-236.61,0.00025185,3]
[385938659,1758138644546,-883.01,0.00025185,3]
[385938660,1758138644555,-480.0,0.00025186,3]
[385938661,1758138644565,-480.0,0.00025186,3]
[385938662,1758138644574,-595.81,0.00025186,3]
[385938664,1758138644583,-480.0,0.00025186,3]
[385938666,1758138644593,-480.0,0.00025186,3]
[385938668,1758138644602,-480.0,0.00025186,3]
[385938670,1758138644611,-654.02,0.00025186,3]
[385938671,1758138644620,-480.0,0.00025186,3]
[385938673,1758138644629,-480.0,0.00025186,3]
[385938675,1758138644639,-480.0,0.00025186,3]
[385938678,1758138644650,-581.25,0.00025186,3]
[385938679,1758138644659,-494.24,0.00025186,3]
[385938681,1758138644668,-512.89,0.00025186,3]
[385938683,1758138644677,-480.0,0.00025186,3]
[385938685,1758138644687,-1372.71,0.00025186,3]
[385938687,1758138644696,-480.0,0.00025186,3]
[385938689,1758138644706,-482.38,0.00025186,3]
[385938691,1758138644715,-480.0,0.00025187,3]
[385938693,1758138644724,-1060.69,0.00025187,3]
[385938695,1758138644734,-480.0,0.00025187,3]
[385938696,1758138644745,-827.34,0.00025187,3]
[385938697,1758138644754,-1786.95,0.00025188,3]
[385938698,1758138644764,-480.0,0.00025188,3]
[385938699,1758138644773,-953.94,0.00025188,3]
[385938700,1758138644782,-3938.95,0.00025188,3]
[385938701,1758138644791,-480.0,0.00025189,3]
[385938702,1758138644800,-480.0,0.00025198,3]
[385938703,1758138644810,-558.47,0.00025198,3]
[385938704,1758138644819,-551.57,0.00025198,3]
[385938705,1758138644829,-2000.0,0.00025216,2]
[385938706,1758138644838,-168.0,0.00025233,2]
[385938707,1758138644847,-420.0,0.00025248,2]
[385938708,1758138644857,-420.0,0.00025248,2]
[385938709,1758138644866,-151.0,0.000253,16]
[385938710,1758138644876,-360.0,0.00025346,2]
[385938711,1758138644885,-1000.0,0.00025421,2]